[Event "Bangabandhu Premier Div League 2022"]
[Site "Dhaka"]
[Date "2022.12.02"]
[Round "3.2"]
[White "Koustav Chatterjee"]
[Black "Ghosh, Diptayan"]
[Result "0-1"]
[ECO "E32"]
[WhiteElo "2496"]
[BlackElo "2544"]
[Annotator "TA"]
[PlyCount "54"]
[EventDate "2022.12.01"]
[EventCountry "BAN"]
[SourceTitle "playchess.com"]
[Source "ChessBase"]
[SourceQuality "1"]
[TimeControl "40/5400+30:1800+30"]

{[%evp 9,54,16,23,13,39,38,42,33,37,31,45,27,31,12,26,12,20,20,14,14,17,29,98,94,106,95,110,56,76,59,95,0,0,-29,-22,-620,-620,-597,-600,-1019,-760,-943,-907,-29996,-5,-29997,-29998]} 1. d4 {[%emt 0:06:50]} Nf6 {[%emt 0:00:24]} 2. c4 {[%emt 0:00:27]} e6 {[%emt 0:00:06]} 3. Nc3 {[%emt 0:00:06]} Bb4 {[%emt 0:00:26]} 4. Qc2 {[%emt 1:25:07]} d6 {[%emt 0:01:27]} 5. e3 {[%emt 0:00:00]} O-O {[%emt 0:02:45]} 6. Bd3 {[%emt 0:00:00] E32: Nimzo-Indian: Classical (4 Qc2): 4...0-0.} Bxc3+ {[%emt 0:09:19]} 7. Qxc3 {[%emt 0:00:00]} e5 {[%emt 1:19:33]} 8. Ne2 {[%emt 0:02:00] White is slightly better.} e4 {[%emt 0:00:00]} 9. Bc2 {[%emt 0:00:00] [#]} d5 $146 {[%emt 0:01:00]} ({Predecessor:} 9... c6 10. Ng3 d5 11. b3 h5 12. h3 {½-½ (12) Maiorov,N (2521)-Istratescu,A (2596) Aschach 2016}) 10. cxd5 {[%emt 0:00:00]} Nxd5 {[%emt 0:00:30]} 11. Qa3 {[%emt 0:00:00]} Re8 {[%emt 0:00:00]} 12. O-O {[%emt 0:02:00]} Bf5 {[%emt 0:00:00]} 13. Ng3 {[%emt 0:00:00]} Bg6 {[%emt 0:00:00]} 14. Qb3 $36 {[%emt 0:01:00][%cal Oc2e4][%mdl 2048] White has good play.} Nc6 {[%emt 0:00:00]} 15. Bd2 {[%emt 0:00:30]} ({Reject} 15. Qxb7 Ndb4 16. Qb5 Nxd4 17. exd4 Nxc2 $17) 15... Qd7 {[%emt 0:00:00]} (15... Re6 $11) 16. Qxb7 $16 {[%emt 0:00:30]} Rab8 {[%emt 0:00:00]} 17. Qa6 {[%emt 0:00:00]} h5 {[%emt 0:00:00]} 18. Ba4 {[%emt 0:00:00] Inhibits h4.} ({Better is} 18. Bb3 $16) 18... Rb6 $1 $14 {[%emt 0:00:00]} 19. Qc4 {[%emt 0:00:00] Black must now prevent Rfc1.} h4 {[%emt 0:04:30]} 20. Rfc1 {[%emt 0:00:00]} (20. Ne2 $16) 20... Re6 $1 $11 {[%emt 0:00:00]} ({Don't play} 20... hxg3 21. Bxc6 gxf2+ 22. Kxf2 Qf5+ 23. Kg1 Rxb2 24. Qxd5 $16) 21. Ne2 {[%emt 0:02:30]} Bh5 $1 {[%emt 0:00:00] ...Rg6 is the strong threat.} 22. Nf4 {[%emt 0:00:00][%mdl 8192] Inhibits Rg6.} (22. Ba5 $11 Nxa5 23. Bxd7 Nxc4 24. Bxe6 Rxe6 25. Rxc4 Bxe2 26. Rc5) 22... Nxf4 $19 {[%emt 0:00:00]} 23. exf4 {[%emt 0:00:00] [#] Threatens to win with d5.} Rg6 $1 {[%emt 0:00:00][%cal Od7h3]} 24. Be3 {[%emt 0:01:30]} Bf3 {[%emt 0:00:00]} 25. Kf1 {[%emt 0:00:00]} Rxg2 {[%emt 0:00:00][%cal Og2g1] ( -> ...Rg1+!)} ({And not} 25... Bxg2+ 26. Ke1 Bf3 27. Rab1 $19) 26. b3 {[%emt 0:00:00] [#]} Rg1+ $3 {[%emt 0:00:00][%mdl 512]} 27. Kxg1 {[%emt 0:00:00] [#] aiming for Kf1.} Qh3 $1 {[%emt 0:00:00][%mdl 64] Weighted Error Value: White=1.19/Black=0.27 (precise)} 0-1

[Event "Bangabandhu Premier Div League 2022"]
[Site "Dhaka"]
[Date "2022.12.02"]
[Round "3.3"]
[White "Mitrabha, Guha"]
[Black "Rahman, Syed Mahfuzur"]
[Result "*"]
[ECO "A67"]
[WhiteElo "2474"]
[BlackElo "2130"]
[Annotator "TA"]
[PlyCount "54"]
[EventDate "2022.12.01"]
[EventCountry "BAN"]
[SourceTitle "playchess.com"]
[Source "ChessBase"]
[SourceQuality "1"]
[TimeControl "40/5400+30:1800+30"]

{[%evp 28,54,62,42,90,20,80,67,77,8,91,69,83,31,103,14,16,20,23,0,149,126,140,146,147,115,191,153,200]} 1. d4 {[%emt 0:07:38]} Nf6 {[%emt 0:02:08]} 2. c4 {[%emt 0:00:00]} c5 {[%emt 0:00:31]} 3. d5 {[%emt 0:00:00]} e6 {[%emt 0:00:09]} 4. Nc3 {[%emt 0:01:30]} exd5 {[%emt 0:00:08]} 5. cxd5 {[%emt 0:00:00]} d6 {[%emt 0:00:10]} 6. e4 {[%emt 0:00:00]} g6 {[%emt 0:00:13]} 7. f4 {[%emt 0:00:00]} Bg7 {[%emt 0:00:26]} 8. Bb5+ {[%emt 0:02:00]} Nfd7 {[%emt 0:00:36]} 9. a4 {[%emt 0:00:00]} O-O {[%emt 0:00:12]} 10. Nf3 {[%emt 0:00:00]} a6 {[%emt 0:07:19]} 11. Bd3 {[%emt 0:00:00]} Nf6 {[%emt 0:00:00]} 12. O-O {[%emt 0:00:00]} Bg4 {[%emt 0:00:00]} 13. h3 {[%emt 0:00:00]} Bxf3 {[%emt 0:00:00]} 14. Qxf3 {[%emt 0:00:00]} Nbd7 {[%emt 0:01:00]} 15. Be3 {[%emt 0:01:30]} Qc7 {[%emt 0:00:30] A67: Modern Benoni: Taimanov Variation.} (15... Qa5 $14) 16. Rfc1 {[%emt 0:00:30] White is more active.} (16. a5 $16) 16... Rfe8 {[%emt 0:00:00]} (16... c4 $11 {remains equal.} 17. Bc2 Rac8) 17. a5 $16 {[%emt 0:00:00]} Rac8 {[%emt 0:01:00] [#] White is slightly better.} 18. Kh1 $146 {[%emt 0:01:00]} (18. Ra4 $16) ({Predecessor:} 18. Bf2 Re7 19. Ra4 Qd8 20. Nb1 c4 21. Bc2 Nh5 22. Nc3 Bh6 23. Be3 f5 24. exf5 Rxe3 25. Qxe3 Nxf4 {1-0 (87) Farago,I-Flesch,J Budapest 1969}) 18... Qd8 {[%emt 0:01:30]} (18... c4 $1 $11 {keeps the balance.} 19. Bc2 Nc5) 19. Ra4 {[%emt 0:01:30]} h6 {[%emt 0:00:00]} 20. b3 {[%emt 0:00:30]} (20. Rd1 $16) 20... Nh5 {[%emt 0:01:00]} (20... c4 $1 $14 21. bxc4 (21. Rxc4 Rxc4 22. bxc4 Qxa5 $11) (21. Bxc4 Nc5 $11) 21... Nc5) 21. Nb1 {[%emt 0:01:00]} (21. g4 $16 Nhf6 22. Bd2) 21... Bd4 $1 $11 {[%emt 0:01:30]} 22. Bd2 {[%emt 0:01:30]} Qh4 {[%emt 0:00:00] ...g5 is the strong threat.} 23. Kh2 {[%emt 0:00:30]} (23. g4 $5 {[%cal Rg4h5]} Qg3 24. Be2 Qxf3+ 25. Bxf3 $11) 23... Qf6 {[%emt 0:00:00]} (23... Bf2 $11) 24. Na3 $16 {[%emt 0:00:30]} Ng7 {[%emt 0:01:30]} 25. Nc4 {[%emt 0:01:00]} h5 {[%emt 0:00:00]} 26. Rf1 {[%emt 0:00:30]} h4 {[%emt 0:01:00]} (26... Qe7 $16) 27. Qg4 {[%emt 0:01:00]} Qe7 {[%emt 0:00:30] Weighted Error Value: White=0.36/Black=0.45} (27... Qd8 $16 {might work better.} 28. Be1 (28. Nxd6 Ne5 $16) 28... Nf6) *

[Event "Bangabandhu Premier Div League 2022"]
[Site "Dhaka"]
[Date "2022.12.02"]
[Round "3.3"]
[White "Mohammad Nubairshah Shaikh"]
[Black "Chatterjee, Debaraj"]
[Result "1-0"]
[ECO "A67"]
[WhiteElo "2439"]
[BlackElo "2196"]
[Annotator "TA"]
[PlyCount "73"]
[EventDate "2022.12.01"]
[EventCountry "BAN"]
[SourceTitle "playchess.com"]
[Source "ChessBase"]
[SourceQuality "1"]
[TimeControl "40/5400+30:1800+30"]

{[%evp 28,73,61,33,79,10,79,76,65,0,85,60,92,23,101,7,11,22,20,0,153,153,149,133,134,126,187,153,218,218,306,298,445,452,618,577,750,727,738,692,692,685,699,670,29990,29991,29996,29997]} 1. d4 {[%emt 1:31:00]} Nf6 {[%emt 0:02:08]} 2. c4 {[%emt 0:00:00]} c5 {[%emt 0:00:31]} 3. d5 {[%emt 0:00:00]} e6 {[%emt 0:00:09]} 4. Nc3 {[%emt 0:01:30]} exd5 {[%emt 0:00:08]} 5. cxd5 {[%emt 0:00:00]} d6 {[%emt 0:00:10]} 6. e4 {[%emt 0:00:00]} g6 {[%emt 0:00:13]} 7. f4 {[%emt 0:00:00]} Bg7 {[%emt 0:00:26]} 8. Bb5+ {[%emt 0:02:00]} Nfd7 {[%emt 0:00:36]} 9. a4 {[%emt 0:00:00]} O-O {[%emt 0:00:12]} 10. Nf3 {[%emt 0:01:00]} a6 {[%emt 1:30:57]} 11. Bd3 {[%emt 0:00:30]} Nf6 {[%emt 0:00:30]} 12. O-O {[%emt 0:00:30]} Bg4 {[%emt 0:00:30]} 13. h3 {[%emt 0:00:00]} Bxf3 {[%emt 0:00:00]} 14. Qxf3 {[%emt 0:00:00]} Nbd7 {[%emt 0:01:00]} 15. Be3 {[%emt 0:01:30]} Qc7 {[%emt 0:00:30] A67: Modern Benoni: Taimanov Variation.} (15... Qa5 $14 {deserves consideration.}) 16. Rfc1 {[%emt 0:00:30] White is more active.} (16. a5 $16) 16... Rfe8 {[%emt 0:00:00]} (16... c4 $11 {keeps the balance.} 17. Bc2 Rac8) 17. a5 $16 Rac8 {[%emt 0:00:00] [#] White is better.} 18. Kh1 $146 (18. Ra4 $14) ({Predecessor:} 18. Bf2 Re7 19. Ra4 Qd8 20. Nb1 c4 21. Bc2 Nh5 22. Nc3 Bh6 23. Be3 f5 24. exf5 Rxe3 25. Qxe3 Nxf4 {1-0 (87) Farago,I-Flesch,J Budapest 1969}) 18... Qd8 {[%emt 0:01:30]} (18... c4 $1 $11 {remains equal.} 19. Bc2 Nc5) 19. Ra4 {[%emt 0:01:30]} h6 {[%emt 0:00:00]} 20. b3 (20. Bc2 $16) 20... Nh5 {[%emt 0:00:00]} (20... c4 $1 $11 21. bxc4 (21. Rxc4 Rxc4 22. bxc4 Qxa5 $11) (21. Bxc4 Nc5 $11) 21... Nc5) 21. Nb1 (21. g4 $16 Nhf6 22. Kg2) 21... Bd4 $1 $11 {[%emt 0:01:30]} 22. Bd2 {[%emt 0:01:30]} Qh4 {[%emt 0:00:00] Hoping for ...g5.} 23. Kh2 {[%emt 0:00:30]} (23. g4 $5 {[%cal Rg4h5]} Qg3 24. Be2 Qxf3+ 25. Bxf3 $11) 23... Qf6 $2 {[%emt 0:00:00] [#]} (23... Bf2 $11) 24. Na3 $1 $16 Ng7 {[%emt 0:01:30]} 25. Nc4 {[%emt 0:01:00]} h5 {[%emt 0:00:00]} 26. Rf1 {[%emt 0:00:00]} h4 {[%emt 0:01:00]} (26... Qe7 $16 27. Be1 f5) 27. Qg4 {[%emt 0:00:00]} Qe7 (27... Qd8 $16 28. Nxd6 Ne5 29. fxe5 (29. Qxc8 Qxd6 30. Qxb7 Nxd3 $16) 29... Bxe5+ 30. Kg1 Qxd6) 28. Be1 $18 {[%emt 0:01:30][%cal Bd2e1,Be1g3,Bg3f4][%mdl 32]} Bf6 {[%emt 0:01:00]} (28... Nf6 {is a better defense.} 29. Qxh4 Rb8) 29. Ra2 {[%emt 0:00:30]} g5 {[%emt 0:00:00]} (29... Rcd8 $142 30. Kh1 Nh5) 30. g3 {[%emt 0:00:00]} hxg3+ 31. Bxg3 {[%emt 0:00:00]} gxf4 {[%emt 0:00:34]} 32. Bxf4 Ne5 {[%emt 0:01:26]} 33. Nxe5 {[%emt 0:00:12]} Bxe5 {[%emt 0:00:00]} 34. Rg2 {[%emt 0:00:03]} Bxf4+ {[%emt 0:00:10]} 35. Rxf4 {[%emt 0:00:01][%csl Gg2][%cal Rg4g7]} f6 {[%emt 0:00:45]} 36. e5 {[%emt 0:03:14]} fxe5 {[%emt 0:00:29] [#]} 37. Qg6 $1 {[%emt 0:00:00][%mdl 64] Weighted Error Value: White=0.23 (precise) /Black=0.79} 1-0

[Event "Bangabandhu Premier Div League 2022"]
[Site "Dhaka"]
[Date "2022.12.02"]
[Round "3.3"]
[White "Nayan Kumar, Mohanto"]
[Black "Idani, Pouya"]
[Result "0-1"]
[ECO "A40"]
[WhiteElo "1976"]
[BlackElo "2631"]
[Annotator "TA"]
[PlyCount "64"]
[EventDate "2022.11.30"]
[EventType "team-tourn"]
[EventCountry "BAN"]
[SourceTitle "playchess.com"]
[Source "ChessBase"]
[SourceQuality "1"]
[TimeControl "40/5400+30:1800+30"]

{[%evp 9,64,-12,14,0,26,15,20,16,16,0,5,2,-2,-4,20,12,32,0,0,-38,-33,-177,-174,-186,-185,-197,-176,-189,-176,-193,-188,-198,-192,-200,-200,-217,-206,-210,-207,-214,-216,-228,-197,-243,-248,-222,-232,-628,-645,-631,-604,-721,-733,-2710,-2271,-1696,-1595]} 1. d4 {[%emt 0:00:51]} g6 {[%emt 0:00:14]} 2. Nf3 {[%emt 0:00:18]} Bg7 {[%emt 0:00:10]} 3. g3 {[%emt 0:00:53]} c5 {[%emt 0:01:57]} 4. Bg2 {[%emt 0:00:16]} cxd4 {[%emt 0:01:42]} 5. Nxd4 {[%emt 0:00:12]} Nf6 {[%emt 0:01:39]} 6. e4 {[%emt 0:04:24] A40: Unusual replies to 1 d4.} d6 {[%emt 0:03:24]} 7. h3 {[%emt 0:07:56]} O-O {[%emt 0:00:54]} 8. O-O {[%emt 0:00:21] The position is equal.} Nc6 {[%emt 0:01:42]} 9. Be3 {[%emt 0:04:46]} Bd7 {[%emt 0:00:40]} 10. c3 {[%emt 0:05:06]} a6 {[%emt 0:04:25]} 11. Nd2 {[%emt 0:00:51]} Qc7 {[%emt 0:00:05] [#]} 12. Rc1 $146 {[%emt 0:02:10]} ({Predecessor:} 12. Qe2 Rac8 13. Rfe1 Ne5 14. Rad1 Nc4 15. Nxc4 Qxc4 16. Qxc4 Rxc4 17. e5 dxe5 18. Nf3 {1-0 (34) Nuenchert,E (2086)-Bussler,J (1940) Binz 2016}) 12... Rac8 {[%emt 0:01:23]} (12... e5 $5 {[%cal Re5d4]}) 13. Re1 {[%emt 0:09:09]} Rfe8 {[%emt 0:02:02]} 14. N2b3 {[%emt 0:17:00]} Ne5 {[%emt 0:00:46]} 15. Nd2 {[%emt 0:00:25] This move loses the game for White.} ({White should try} 15. Nc2 $15) 15... Nd3 $1 $19 {[%emt 0:00:07][%csl LRb2,LRc1,LRe1][%cal Oe7e5]} 16. Qe2 {[%emt 0:01:33]} Nxe1 {[%emt 0:00:26]} 17. Rxe1 {[%emt 0:00:12]} b5 {[%emt 0:01:24]} 18. Qd3 {[%emt 0:06:45]} e5 {[%emt 0:03:20]} 19. Nc2 {[%emt 0:00:53]} Be6 {[%emt 0:02:40]} 20. Bg5 {[%emt 0:12:53]} Nd7 {[%emt 0:01:04][%cal Bf6d7,Bd7c5,Bc5d3][%mdl 32]} 21. Nb4 {[%emt 0:02:40]} Nc5 {[%emt 0:00:25]} 22. Qb1 {[%emt 0:04:37]} a5 {[%emt 1:11:01][%cal Ba6a5,Ba5a4][%mdl 32]} 23. Nd5 {[%emt 0:17:49]} Bxd5 {[%emt 0:00:00]} 24. exd5 {[%emt 0:00:00]} f5 {[%emt 0:01:00]} 25. Nb3 {[%emt 0:01:00]} e4 {[%emt 0:00:00][%cal Be5e4,Be4d3][%mdl 32]} 26. Rd1 {[%emt 0:00:00]} (26. Nxc5 $142 Qxc5 27. Rd1) 26... Nd3 {[%emt 0:00:00]} 27. Bf1 {[%emt 0:00:00]} a4 {[%emt 0:00:00]} 28. Nd4 {[%emt 0:00:00] [#]} (28. Bxd3 exd3 29. Nc1) 28... Bxd4 {[%emt 0:00:00] Black is clearly winning.} 29. cxd4 {[%emt 0:00:00]} Qc2 {[%emt 0:00:00]} 30. Bxd3 {[%emt 0:00:15]} exd3 {[%emt 0:00:00]} 31. Be3 {[%emt 0:01:59]} Qxb1 {[%emt 0:00:00]} 32. Rxb1 {[%emt 0:00:01] [#]} Rxe3 $1 {[%emt 0:00:00][%mdl 512] Weighted Error Value: White=0.72/Black=0.27 (precise)} 0-1

[Event "Bangabandhu Premier Div League 2022"]
[Site "Dhaka"]
[Date "2022.12.02"]
[Round "3.4"]
[White "Mohammad Nubairshah Shaikh"]
[Black "Chatterjee, Debaraj"]
[Result "1-0"]
[ECO "D93"]
[WhiteElo "2439"]
[BlackElo "2196"]
[Annotator "TA"]
[PlyCount "117"]
[EventDate "2022.12.01"]
[EventCountry "BAN"]
[SourceTitle "playchess.com"]
[Source "ChessBase"]
[SourceQuality "1"]
[TimeControl "40/5400+30:1800+30"]

{[%evp 17,117,41,41,41,45,45,49,49,45,43,43,46,60,38,60,38,56,37,45,14,73,0,0,0,0,0,0,0,0,0,0,0,28,23,23,23,191,173,183,172,159,159,222,237,236,217,281,162,264,173,167,178,176,168,192,168,380,380,380,380,386,381,369,370,362,355,675,647,638,618,1410,1279,29960,29962,29965,29965,29965,29966,29960,29958,29950,11592,29963,29963,29959,29963,29965,29968,29970,29968,29968,29970,29969,29969,29969,29970,29970,29972,29972,29971,5804,4627]} 1. d4 {[%emt 1:31:00]} d5 {[%emt 0:07:33]} 2. Bf4 {[%emt 0:00:30]} Nf6 {[%emt 1:23:57]} 3. e3 {[%emt 0:00:00]} g6 {[%emt 0:00:30]} 4. c4 {[%emt 0:00:00]} c6 {[%emt 0:00:00]} 5. Nc3 {[%emt 0:01:30]} Bg7 {[%emt 0:01:00]} 6. Nf3 {[%emt 0:00:30]} O-O {[%emt 0:00:30]} 7. h3 {[%emt 0:00:30]} Nbd7 {[%emt 0:00:30]} 8. cxd5 {[%emt 0:00:30]} Nxd5 {[%emt 0:00:30]} 9. Nxd5 {[%emt 0:00:00]} cxd5 {[%emt 0:00:30]} 10. Be2 {[%emt 0:01:00] D93: Grünfeld: 4 Nf3 Bg7 5 Bf4 0-0 6 e3.} Qa5+ {[%emt 0:00:00]} 11. Qd2 {[%emt 0:00:30]} Qxd2+ {[%emt 0:00:00]} 12. Kxd2 {[%emt 0:00:00] White is slightly better.} f6 {[%emt 0:01:30]} 13. Rhc1 {[%emt 0:01:00] [#]} a6 $146 {[%emt 0:00:00]} ({Predecessor:} 13... e5 14. Bg3 Re8 15. Bb5 a6 16. Rxc8 axb5 17. Rc7 Nb6 18. Rxb7 Nc4+ 19. Ke2 Nxb2 20. Rxb5 {1-0 (35) Jankovic,A (2548)-Bobanac,M (2245) Porec 2022}) 14. Ke1 {[%emt 0:00:30]} Re8 {[%emt 0:01:00]} 15. Bh2 {[%emt 0:00:30]} Bf8 {[%emt 0:00:30]} 16. Bd1 {[%emt 0:00:30]} e6 {[%emt 0:00:00]} 17. g4 Nb6 {[%emt 0:01:00]} 18. b3 {[%emt 0:01:00]} Bd7 {[%emt 0:00:00]} (18... Ba3 $11 {remains equal.}) 19. Bc7 {[%emt 0:00:30]} (19. g5 $16) 19... Nc8 $11 {[%emt 0:01:00]} 20. g5 {[%emt 0:00:00]} fxg5 {[%emt 0:00:30]} 21. a4 {[%emt 0:01:00]} Nd6 {[%emt 0:00:30][%cal Oe6e5]} 22. Ne5 {[%emt 0:00:00]} Bc8 {[%emt 0:00:30]} 23. Ng4 {[%emt 0:01:00]} Kg7 {[%emt 0:00:00] Prevents Nf6.} 24. Bb6 {[%emt 0:00:00]} h5 25. Ne5 {[%emt 0:01:00]} (25. Rc7+ {keeps more tension.} Nf7 26. Ne5 Bb4+ 27. Kf1) 25... Nf7 $1 {[%emt 0:00:00]} 26. Rc7 $36 {[%emt 0:00:30][%mdl 2048] White is more active.} Re7 {[%emt 0:00:00] Loses the game.} (26... Bb4+ $1 $11 {and Black stays safe.} 27. Ke2 Re7) 27. Rac1 $18 {[%emt 0:00:00]} Nxe5 {[%emt 0:00:00]} 28. dxe5 {[%emt 0:00:00]} Bd7 {[%emt 0:03:00]} 29. Rxb7 {[%emt 0:00:00] [#] Threatens to win with Rcc7. White is much more active. The black rooks are badly placed.} Rc8 (29... Be8 $16 30. Rcc7 Rxc7 31. Bxc7 (31. Rxc7+ Kg8 $16) 31... Bc6) 30. Bc5 {[%emt 0:02:00]} Rf7 {[%emt 0:01:00]} 31. Bxf8+ {[%emt 0:00:00]} Kxf8 {[%emt 0:00:30]} 32. Rc2 {[%emt 0:00:00]} (32. Rxc8+ $142 Bxc8 33. Rb8) 32... Ke8 (32... Rxc2 {might work better.} 33. Bxc2 Kg7) 33. b4 {[%emt 0:01:30]} Rf5 {[%emt 0:01:00]} 34. b5 {[%emt 0:00:00]} axb5 {[%emt 0:00:30]} 35. axb5 {[%emt 0:01:00][%cal Ba4b5,Bb5b6][%mdl 32]} Rxe5 {[%emt 0:00:30]} 36. b6 {[%emt 0:00:00] Rxc8+ is the strong threat.} Rxc2 (36... Rd8) 37. Bxc2 {[%emt 0:00:00][%mdl 4096] Endgame KRB-KRB} d4 {[%emt 0:01:00]} 38. Ra7 {[%emt 0:01:30]} (38. Bxg6+ Ke7 $16) 38... Bc6 {[%emt 0:00:30] Inhibits Ra8+.} 39. Rc7 {[%emt 0:00:00]} (39. Bxg6+ Kd8 $16) 39... Bh1 {[%emt 0:00:00]} 40. b7 {[%emt 0:00:00]} ({Weaker is} 40. Bxg6+ Kd8 $16) 40... Bxb7 {[%emt 0:01:00]} 41. Rxb7 {[%emt 0:00:00]} dxe3 $2 {[%emt 0:29:30]} (41... Kf8 42. Ke2 dxe3 43. fxe3 (43. Bxg6 exf2+ 44. Kxf2 h4 $18) 43... g4 44. hxg4 hxg4 45. Bxg6 g3 46. Rf7+ Kg8) 42. Bxg6+ {[%emt 0:32:00] KRB-KR} Kf8 {[%emt 0:01:30]} 43. f3 {[%emt 0:00:30]} g4 {[%emt 0:00:00]} 44. fxg4 {[%emt 0:00:30]} hxg4 {[%emt 0:01:00]} 45. hxg4 {[%emt 0:00:00]} Rg5 {[%emt 0:00:00]} 46. Bh5 {[%emt 0:00:00]} Re5 {[%emt 0:00:00]} 47. Ke2 {[%emt 0:00:00]} Re4 48. Rb3 {[%emt 0:02:00]} Ke7 {[%emt 0:00:00]} 49. Rxe3 {[%emt 0:00:30]} (49. Rb5 $142 e5 50. Rb6 Kf8 51. Rb7 Rf4 52. Kxe3 Kg8 53. Re7 Kh8 54. Rxe5) 49... Ra4 {[%emt 0:00:00]} 50. Kf3 {[%emt 0:00:00]} Kf6 {[%emt 0:00:00]} 51. Kg3 {[%emt 0:01:00]} Ra1 {[%emt 0:00:00]} 52. Kh4 {[%emt 0:00:30]} Rh1+ {[%emt 0:00:00] [#]} 53. Rh3 $1 {[%emt 0:00:00]} Rg1 {[%emt 0:00:00]} 54. Rf3+ {[%emt 0:01:00]} Ke5 {[%emt 0:00:00]} 55. Kg5 {[%emt 0:00:00]} Ke4 {[%emt 0:00:00]} 56. Ra3 {[%emt 0:01:00]} e5 {[%emt 0:00:00]} 57. Bg6+ {[%emt 0:00:30]} Kd4 {[%emt 0:00:00]} 58. Rd3+ {[%emt 0:00:00]} Kc4 {[%emt 0:00:00]} 59. Rd8 {[%emt 0:00:00] Weighted Error Value: White=0.13 (very precise) /Black=0.52} 1-0

[Event "Bangabandhu Premier Div League 2022"]
[Site "Dhaka"]
[Date "2022.12.02"]
[Round "3.4"]
[White "Subrota, Biswas"]
[Black "Swarnavo Choudhury"]
[Result "1-0"]
[ECO "A15"]
[WhiteElo "2288"]
[BlackElo "1977"]
[Annotator "TA"]
[PlyCount "47"]
[EventDate "2022.11.30"]
[EventType "team-tourn"]
[EventCountry "BAN"]
[SourceTitle "playchess.com"]
[Source "ChessBase"]
[SourceQuality "1"]
[TimeControl "40/5400+30:1800+30"]

{[%evp 9,47,-18,14,14,30,29,32,19,9,-44,35,-5,12,0,24,0,0,-21,99,93,112,135,146,164,156,177,282,294,304,304,286,247,658,760,702,705,663,696,1168,1166]} 1. Nf3 {[%emt 0:00:01]} Nf6 {[%emt 0:11:05]} 2. c4 {[%emt 0:00:55]} c6 {[%emt 0:04:23]} 3. Qa4 {[%emt 0:00:43]} g6 {[%emt 0:02:51]} 4. Nc3 {[%emt 0:00:03]} Bg7 {[%emt 0:00:34]} 5. e4 {[%emt 0:03:11]} d6 {[%emt 0:00:19]} 6. d4 {[%emt 0:00:32] A15: English Opening: 1...Nf6.} Nbd7 {[%emt 0:11:18]} 7. Be2 {[%emt 0:01:00]} O-O {[%emt 0:05:44] [#]} 8. Be3 $146 {[%emt 0:00:22] White is slightly better.} ({Predecessor:} 8. h3 e5 9. dxe5 dxe5 10. Be3 Ne8 11. Rd1 Nc7 12. b4 Ne6 13. b5 Qc7 14. O-O {1-0 (47) Schild,C (2308)-Schwing,H (2276) Birkenfeld 2013}) 8... e5 {[%emt 0:07:09]} 9. dxe5 {[%emt 0:01:59]} ({White should play} 9. Qc2 $11) 9... dxe5 {[%emt 0:10:19]} (9... Ng4 $1 $15) 10. Nd2 {[%emt 0:02:18]} (10. Bxa7 $2 {too greedy.} b6 11. O-O Nc5 12. Qxc6 Rxa7 $19) 10... Qc7 {[%emt 0:10:51]} 11. c5 {[%emt 0:01:06]} Rd8 {[%emt 0:04:49]} 12. Nc4 $36 {[%emt 0:02:50][%mdl 2048] White has good play.} Bf8 {[%emt 0:13:28]} 13. b4 {[%emt 0:00:21]} Be7 {[%emt 0:03:55]} (13... a5 $11 {keeps the balance.}) 14. O-O $16 {[%emt 0:06:09] White is much more active.} Nf8 {[%emt 0:03:24]} 15. f4 {[%emt 0:00:01][%cal Bf2f4,Bf4e5,Be5d6][%mdl 32]} Bg4 {[%emt 0:03:18][%cal Of6e4]} 16. fxe5 {[%emt 0:02:30]} ({Reject} 16. Nxe5 $6 Bxe2 17. Nxe2 Nxe4 $11) 16... Bxe2 {[%emt 0:03:03]} 17. Nxe2 {[%emt 0:00:51]} Nxe4 {[%emt 0:00:39] [#]} (17... Ng4 {was necessary.}) 18. Qc2 $1 $18 {[%emt 0:00:33]} f5 {[%emt 0:01:42]} 19. Qb3 {[%emt 0:00:03] Threatens to win with Nd6+.} Kh8 {[%emt 0:00:32]} 20. Nd6 {[%emt 0:00:04]} Bxd6 {[%emt 0:00:36]} (20... Bg5 21. Nf7+ Qxf7 22. Qxf7 Bxe3+ 23. Kh1 Rd7) 21. exd6 {[%emt 0:00:05] White is clearly winning.} ({Not} 21. cxd6 Qd7 22. Nc3 Nxc3 $16) 21... Qg7 {[%emt 0:00:18]} 22. Bd4 {[%emt 0:00:25]} Nf6 {[%emt 0:00:02]} 23. g4 {[%emt 0:02:10][%cal Bg2g4,Bg4g5][%mdl 32] [#] Hoping for g5.} Re8 {[%emt 0:00:57] Against g5} 24. g5 {[%emt 0:00:16] Weighted Error Value: White=0.11 (very precise) /Black=0.57} 1-0